fUST/lending_fUST_20250618
["ID","MTS","AMOUNT","RATE_DAILY","PERIOD"]
[366379831,1750223438117,-460.0,0.00021917,6]
[366379832,1750223438126,-460.0,0.00021917,2]
[366379833,1750223438136,-421.53816738,0.00021917,6]
[366379834,1750223438146,-430.0,0.00021917,6]
[366379835,1750223438156,-460.0,0.00021917,6]
[366379836,1750223438166,-460.0,0.00021917,6]
[366379837,1750223438176,-488.7438558,0.00021917,6]
[366379838,1750223438186,-339.17501716,0.00021917,6]
[366379839,1750223438195,-460.0,0.00021917,6]
[366379840,1750223438205,-500.0,0.00021917,6]
[366379841,1750223438216,-460.0,0.00021917,6]
[366379842,1750223438225,-234.65232542,0.00021917,6]
[366379843,1750223438235,-460.0,0.00021917,6]
[366379844,1750223438244,-460.0,0.00021917,6]
[366379845,1750223438253,-433.23107027,0.00021917,6]
[366379846,1750223438263,-460.0,0.00021917,6]
[366379847,1750223438272,-460.0,0.00021917,6]
[366379848,1750223438281,-462.82293256,0.00021917,6]
[366379849,1750223438291,-460.0,0.00021917,6]
[366379850,1750223438301,-460.0,0.00021917,6]
[366379851,1750223438310,-434.41522683,0.00021917,6]
[366379852,1750223438321,-460.0,0.00021917,6]
[366379853,1750223438331,-500.0,0.00021917,6]
[366379854,1750223438340,-330.2417442,0.00021917,6]
[366379855,1750223438350,-518.71515399,0.00021917,6]
[366379856,1750223438361,-431.83989153,0.00021917,6]
[366379857,1750223438370,-460.0,0.00021917,6]
[366379858,1750223438379,-460.0,0.00021917,6]
[366379859,1750223438388,-460.0,0.00021917,6]
[366379860,1750223438397,-460.0,0.00021917,6]
[366379861,1750223438407,-460.0,0.00021917,6]
[366379862,1750223438416,-430.0,0.00021917,6]
[366379863,1750223438425,-460.0,0.00021917,6]
[366379864,1750223438436,-460.0,0.00021917,6]
[366379865,1750223438539,-460.0,0.00021917,6]
[366379866,1750223438551,-460.0,0.00021917,6]
[366379867,1750223438562,-430.0,0.00021917,6]
[366379868,1750223438573,-426.01935507,0.00021917,6]
[366379869,1750223438583,-460.0,0.00021917,6]
[366379870,1750223438592,-430.0,0.00021917,6]
[366379871,1750223438602,-460.0,0.00021917,6]
[366379872,1750223438612,-460.0,0.00021917,6]
[366379873,1750223438622,-460.0,0.00021917,6]
[366379874,1750223438632,-421.65281279,0.00021917,6]
[366379875,1750223438642,-460.0,0.00021917,6]
[366379876,1750223438652,-460.0,0.00021917,6]
[366379877,1750223438662,-460.0,0.00021917,6]
[366379878,1750223438672,-460.0,0.00021917,6]
[366379879,1750223438681,-460.0,0.00021917,6]
[366379880,1750223438690,-460.0,0.00021917,6]
[366379881,1750223438702,-433.71880724,0.00021917,6]
[366379882,1750223438712,-460.0,0.00021917,6]
[366379883,1750223438721,-498.40816944,0.00021917,6]
[366379884,1750223438731,-460.0,0.00021917,6]
[366379885,1750223438740,-460.0,0.00021917,6]
[366379886,1750223438751,-441.29056612,0.00021917,2]
[366379887,1750223438760,-460.0,0.00021917,6]
[366379888,1750223438770,-460.0,0.00021917,6]
[366379889,1750223438780,-460.0,0.00021917,6]
[366379890,1750223438790,-336.302638,0.00021917,6]
[366379891,1750223438799,-479.90821291,0.00021917,6]
[366379892,1750223438809,-412.09612576,0.00021917,6]
[366379893,1750223438825,-433.62210622,0.00021917,6]
[366379894,1750223438835,-460.0,0.00021917,6]
[366379895,1750223438845,-460.0,0.00021917,6]
[366379896,1750223438855,-460.0,0.00021917,6]
[366379897,1750223438865,-460.0,0.00021917,6]
[366379898,1750223438874,-460.0,0.00021917,6]
[366379899,1750223438884,-460.0,0.00021917,6]
[366379900,1750223438893,-460.0,0.00021917,6]
[366379901,1750223438903,-472.72637306,0.00021917,6]
[366379902,1750223438912,-460.0,0.00021917,6]
[366379903,1750223438922,-460.0,0.00021917,6]
[366379904,1750223438931,-460.0,0.00021917,6]
[366379905,1750223438941,-460.0,0.00021917,6]
[366379906,1750223438950,-460.0,0.00021917,6]
[366379907,1750223438959,-460.0,0.00021917,6]
[366379908,1750223438969,-461.22732098,0.00021917,6]
[366379909,1750223438979,-460.0,0.00021917,6]
[366379910,1750223438988,-460.0,0.00021917,6]
[366379911,1750223438998,-460.0,0.00021917,6]
[366379912,1750223439008,-460.0,0.00021917,6]
[366379913,1750223439017,-376.65043904,0.00021917,6]
[366379914,1750223439027,-460.0,0.00021917,6]
[366379915,1750223439036,-460.0,0.00021917,6]
[366379916,1750223439045,-460.0,0.00021917,6]
[366379917,1750223439055,-442.8098658,0.00021917,6]
[366379918,1750223439065,-460.0,0.00021917,6]
[366379919,1750223439074,-460.0,0.00021917,6]
[366379920,1750223439084,-460.0,0.00021917,6]
[366379921,1750223439093,-460.0,0.00021917,6]
[366379922,1750223439102,-460.0,0.00021917,6]
[366379923,1750223439112,-460.0,0.00021917,6]
[366379924,1750223439122,-460.0,0.00021917,6]
[366379925,1750223439132,-460.0,0.00021917,6]
[366379926,1750223439141,-460.0,0.00021917,6]
[366379927,1750223439151,-460.0,0.00021917,6]
[366379928,1750223439161,-474.08178349,0.00021917,6]
[366379929,1750223439171,-531.18956226,0.00021917,6]
[366379930,1750223439180,-460.0,0.00021917,6]
[366379931,1750223439191,-460.0,0.00021917,6]
[366379932,1750223439202,-460.0,0.00021917,6]
[366379933,1750223439212,-460.0,0.00021917,6]
[366379934,1750223439222,-460.0,0.00021917,6]
[366379935,1750223439232,-380.0,0.00021917,6]
[366379936,1750223439241,-460.0,0.00021917,6]
[366379937,1750223439251,-460.0,0.00021917,6]
[366379938,1750223439260,-460.0,0.00021917,6]
[366379939,1750223439270,-395.69261379,0.00021917,6]
[366379940,1750223439280,-460.0,0.00021917,6]
[366379942,1750223439289,-440.0,0.00021917,6]
[366379944,1750223439298,-460.0,0.00021917,6]
[366379946,1750223439309,-507.59413577,0.00021917,6]
[366379948,1750223439318,-344.46939742,0.00021917,6]
[366379950,1750223439328,-440.0,0.00021917,6]
[366379952,1750223439337,-460.0,0.00021917,6]
[366379954,1750223439347,-460.0,0.00021917,6]
[366379955,1750223439356,-460.0,0.00021917,6]
[366379956,1750223439366,-500.0,0.00021917,6]
[366379957,1750223439376,-500.0,0.00021917,2]
[366379958,1750223439385,-434.40868331,0.00021917,6]
[366379959,1750223439395,-472.30790771,0.00021917,6]
[366379960,1750223439404,-460.0,0.00021917,6]
[366379961,1750223439413,-434.66274325,0.00021917,6]
[366379962,1750223439422,-451.50420459,0.00021917,6]
[366379963,1750223439432,-460.0,0.00021917,6]
[366379964,1750223439441,-460.0,0.00021917,6]
[366379965,1750223439451,-460.0,0.00021917,6]
[366379967,1750223439460,-460.0,0.00021917,6]
[366379968,1750223439470,-460.0,0.00021917,6]
[366379969,1750223439479,-439.92096667,0.00021917,6]
[366379970,1750223439488,-460.0,0.00021917,6]
[366379971,1750223439498,-460.0,0.00021917,6]
[366379972,1750223439507,-460.0,0.00021917,6]
[366379973,1750223439522,-460.0,0.00021917,6]
[366379974,1750223439536,-460.0,0.00021917,6]
[366379975,1750223439551,-233.67553299,0.00021917,6]
[366379976,1750223439563,-434.21071856,0.00021917,6]
[366379977,1750223439574,-460.0,0.00021917,6]
[366379978,1750223439588,-423.97515591,0.00021917,6]
[366379979,1750223439601,-460.0,0.00021917,6]
[366379980,1750223439615,-460.0,0.00021917,6]
[366379981,1750223439628,-475.75378105,0.00021917,6]
[366379982,1750223439642,-460.0,0.00021917,6]
[366379983,1750223439656,-453.67728631,0.00021917,6]
[366379984,1750223439669,-460.0,0.00021917,6]
[366379985,1750223439683,-421.87527604,0.00021917,6]
[366379986,1750223439695,-371.36343776,0.00021917,6]
[366379987,1750223439710,-460.0,0.00021917,6]
[366379988,1750223439723,-300.86217429,0.00021917,6]
[366379989,1750223439735,-460.0,0.00021917,6]
[366379990,1750223439750,-460.0,0.00021917,6]
[366379991,1750223439762,-448.7713665,0.00021917,6]
[366379992,1750223439775,-447.70125313,0.00021917,6]
[366379995,1750223439786,-460.0,0.00021917,6]
[366379997,1750223439797,-460.0,0.00021917,6]
[366379999,1750223439809,-444.15367778,0.00021917,6]
[366380001,1750223439820,-460.0,0.00021917,6]
[366380003,1750223439833,-460.0,0.00021917,6]
[366380006,1750223439845,-385.60346026,0.00021917,6]
[366380008,1750223439859,-404.99766833,0.00021917,6]
[366380011,1750223439872,-460.0,0.00021917,6]
[366380013,1750223439885,-460.0,0.00021917,6]
[366380015,1750223439897,-440.0,0.00021917,6]
[366380018,1750223439911,-460.0,0.00021917,6]
[366380020,1750223439922,-462.14175352,0.00021917,6]
[366380022,1750223439933,-437.47363845,0.00021917,6]
[366380024,1750223439943,-460.0,0.00021917,6]
[366380025,1750223439955,-825.78,0.00021917,6]
[366380026,1750223439968,-460.0,0.00021917,6]
[366380027,1750223439982,-460.0,0.00021917,6]
[366380028,1750223439995,-460.0,0.00021917,6]
[366380029,1750223440007,-392.2612214,0.00021917,6]
[366380030,1750223440019,-460.0,0.00021917,6]
[366380031,1750223440030,-439.0,0.00021917,6]
[366380032,1750223440043,-460.0,0.00021917,6]
[366380033,1750223440056,-360.11491692,0.00021917,6]
[366380034,1750223440067,-574.06851748,0.00021917,6]
[366380035,1750223440078,-460.0,0.00021917,6]
[366380036,1750223440089,-460.0,0.00021917,6]
[366380037,1750223440100,-453.61072256,0.00021917,6]
[366380038,1750223440111,-440.0,0.00021917,6]
[366380039,1750223440124,-440.0,0.00021917,6]
[366380040,1750223440136,-430.0,0.00021917,6]
[366380041,1750223440147,-857.72,0.00021917,6]
[366380042,1750223440159,-460.0,0.00021917,6]
[366380043,1750223440170,-460.0,0.00021917,6]
[366380044,1750223440182,-467.29547315,0.00021917,6]
[366380045,1750223440195,-460.0,0.00021917,6]
[366380046,1750223440206,-460.0,0.00021917,6]
[366380047,1750223440218,-306.7919228,0.00021917,6]
[366380048,1750223440230,-460.0,0.00021917,6]
[366380049,1750223440241,-386.11947404,0.00021917,6]
[366380050,1750223440253,-460.0,0.00021917,6]
[366380051,1750223440265,-1291.82,0.00021917,6]
[366380052,1750223440276,-430.0,0.00021917,6]
[366380053,1750223440289,-460.0,0.00021917,6]
[366380054,1750223440301,-460.0,0.00021917,6]
[366380055,1750223440313,-460.0,0.00021917,6]
[366380056,1750223440325,-460.0,0.00021917,6]
[366380057,1750223440338,-460.0,0.00021917,6]
[366380058,1750223440349,-460.0,0.00021917,6]
[366380059,1750223440361,-460.0,0.00021917,6]
[366380060,1750223440372,-430.0,0.00021917,6]
[366380061,1750223440384,-460.0,0.00021917,6]
[366380062,1750223440395,-460.0,0.00021917,6]
[366380063,1750223440406,-460.0,0.00021917,6]
[366380064,1750223440418,-436.34825085,0.00021917,6]
[366380065,1750223440429,-460.0,0.00021917,6]
[366380066,1750223440441,-446.77056235,0.00021917,6]
[366380067,1750223440452,-460.0,0.00021917,6]
[366380068,1750223440464,-460.0,0.00021917,6]
[366380069,1750223440475,-460.0,0.00021917,6]
[366380070,1750223440487,-200.58955863,0.00021917,6]
[366380071,1750223440499,-460.0,0.00021917,6]
[366380072,1750223440510,-472.93,0.00021917,6]
[366380073,1750223440521,-460.0,0.00021917,6]
[366380074,1750223440533,-1253.95,0.00021917,6]
[366380075,1750223440544,-460.0,0.00021917,6]
[366380076,1750223440555,-460.0,0.00021917,6]
[366380077,1750223440566,-460.0,0.00021917,6]
[366380078,1750223440577,-460.0,0.00021917,6]
[366380079,1750223440589,-460.0,0.00021917,6]
[366380080,1750223440600,-449.42529795,0.00021917,6]
[366380081,1750223440611,-460.0,0.00021917,6]
[366380082,1750223440623,-431.15199728,0.00021917,6]
[366380083,1750223440635,-460.0,0.00021917,6]
[366380084,1750223440646,-460.0,0.00021917,6]
[366380085,1750223440657,-642.24,0.00021917,6]
[366380086,1750223440670,-460.0,0.00021917,6]
[366380087,1750223440682,-460.0,0.00021917,6]
[366380088,1750223440692,-460.0,0.00021917,6]
[366380089,1750223440708,-285.69672431,0.00021917,6]
[366380090,1750223440845,-460.0,0.00021917,6]
[366380091,1750223440861,-460.0,0.00021917,6]
[366380092,1750223440871,-460.0,0.00021917,6]
[366380093,1750223440880,-460.0,0.00021917,6]
[366380094,1750223440890,-460.0,0.00021917,6]
[366380095,1750223440899,-460.0,0.00021917,6]
[366380096,1750223440908,-464.64276053,0.00021917,6]
[366380097,1750223440917,-460.0,0.00021917,6]
[366380098,1750223440927,-460.0,0.00021917,6]
[366380099,1750223440936,-460.0,0.00021917,6]
[366380100,1750223440947,-460.0,0.00021917,6]
[366380101,1750223440956,-460.0,0.00021917,6]
[366380102,1750223440966,-460.0,0.00021917,6]
[366380103,1750223440975,-460.0,0.00021917,6]
[366380104,1750223440985,-460.0,0.00021917,6]
[366380105,1750223440994,-460.0,0.00021917,6]
[366380106,1750223441003,-460.0,0.00021917,6]
[366380107,1750223441012,-433.39565668,0.00021917,6]
[366380108,1750223441021,-423.44445758,0.00021917,6]
[366380109,1750223441031,-460.0,0.00021917,6]
[366380110,1750223441040,-460.0,0.00021917,6]
[366380111,1750223441049,-460.0,0.00021917,6]
[366380112,1750223441060,-460.0,0.00021917,6]
[366380113,1750223441070,-396.62329245,0.00021917,6]
[366380114,1750223441079,-445.35227652,0.00021917,6]
[366380115,1750223441089,-467.02992165,0.00021917,6]
[366380116,1750223441099,-460.0,0.00021917,6]
[366380117,1750223441108,-460.0,0.00021917,6]
[366380118,1750223441117,-460.0,0.00021917,6]
[366380119,1750223441126,-821.1,0.00021917,6]
[366380120,1750223441136,-460.0,0.00021917,6]
[366380121,1750223441145,-460.0,0.00021917,6]
[366380122,1750223441155,-436.79048135,0.00021917,6]
[366380123,1750223441164,-460.0,0.00021917,6]
[366380124,1750223441174,-365.14393634,0.00021917,6]
[366380125,1750223441183,-429.36849159,0.00021917,6]
[366380126,1750223441193,-414.21533398,0.00021917,6]
[366380127,1750223441203,-460.0,0.00021917,6]
[366380128,1750223441213,-460.0,0.00021917,6]
[366380129,1750223441223,-460.0,0.00021917,6]
[366380130,1750223441232,-460.0,0.00021917,6]
[366380131,1750223441242,-460.0,0.00021917,6]
[366380132,1750223441251,-496.14,0.00021917,6]
[366380133,1750223441471,-460.0,0.00021917,6]
[366380134,1750223441481,-460.0,0.00021917,6]
[366380135,1750223441491,-448.16244621,0.00021917,6]
[366380136,1750223441500,-460.0,0.00021917,6]
[366380137,1750223441510,-460.0,0.00021917,6]
[366380138,1750223441519,-460.0,0.00021917,6]
[366380139,1750223441528,-460.0,0.00021917,6]
[366380140,1750223441538,-460.0,0.00021917,6]
[366380141,1750223441548,-656.42,0.00021917,6]
[366380142,1750223441558,-460.0,0.00021917,6]
[366380143,1750223441568,-460.0,0.00021917,6]
[366380144,1750223441577,-460.0,0.00021917,6]
[366380145,1750223441587,-460.0,0.00021917,6]
[366380146,1750223441596,-460.0,0.00021917,6]
[366380147,1750223441606,-507.99603236,0.00021917,6]
[366380148,1750223441616,-435.03614908,0.00021917,6]
[366380149,1750223441627,-460.0,0.00021917,6]
[366380150,1750223441636,-460.0,0.00021917,6]
[366380151,1750223441646,-430.0,0.00021917,6]
[366380152,1750223441655,-430.0,0.00021917,6]
[366380153,1750223441664,-460.0,0.00021917,6]
[366380154,1750223441673,-429.68766922,0.00021917,6]
[366380155,1750223441683,-460.0,0.00021917,6]
[366380156,1750223441692,-447.4963939,0.00021917,6]
[366380157,1750223441705,-460.0,0.00021917,6]
[366380158,1750223441714,-214.72553952,0.00021917,6]
[366380159,1750223441725,-460.0,0.00021917,6]
[366380160,1750223441735,-460.0,0.00021917,6]
[366380161,1750223441744,-436.30023701,0.00021917,6]
[366380162,1750223441754,-433.04985629,0.00021917,6]
[366380163,1750223441763,-460.0,0.00021917,6]
[366380164,1750223441773,-605.67,0.00021917,6]
[366380165,1750223441783,-440.0,0.00021917,6]
[366380166,1750223441792,-460.0,0.00021917,6]
[366380167,1750223441802,-3917.8,0.00021917,6]
[366380168,1750223441812,-291.15789632,0.00021917,6]
[366380169,1750223441821,-421.52221824,0.00021917,6]
[366380170,1750223441831,-460.0,0.00021917,6]
[366380171,1750223441841,-410.0,0.00021917,6]
[366380172,1750223441851,-460.0,0.00021917,6]
[366380173,1750223441861,-460.0,0.00021917,6]
[366380174,1750223441871,-460.0,0.00021917,6]
[366380175,1750223441881,-460.0,0.00021917,6]
[366380176,1750223441890,-1046.18,0.00021917,6]
[366380177,1750223441900,-460.0,0.00021917,6]
[366380178,1750223441910,-460.0,0.00021917,6]
[366380179,1750223441919,-460.0,0.00021917,6]
[366380180,1750223441929,-460.0,0.00021917,6]
[366380181,1750223441939,-460.0,0.00021917,6]
[366380182,1750223441948,-507.25,0.00021917,6]
[366380183,1750223441957,-559.21,0.00021917,6]
[366380184,1750223441967,-430.0,0.00021917,6]
[366380185,1750223441976,-515.7,0.00021917,6]
[366380186,1750223441985,-460.0,0.00021917,6]
[366380187,1750223441995,-460.0,0.00021917,6]
[366380188,1750223442005,-460.0,0.00021917,6]
[366380189,1750223442014,-430.0,0.00021917,6]
[366380190,1750223442023,-421.9168901,0.00021917,6]
[366380191,1750223442032,-430.0,0.00021917,6]
[366380192,1750223442042,-1238.71,0.00021917,6]
[366380193,1750223442051,-430.83968759,0.00021917,6]
[366380194,1750223442060,-460.0,0.00021917,6]
[366380195,1750223442070,-432.59468798,0.00021917,6]
[366380196,1750223442079,-440.0,0.00021917,6]
[366380197,1750223442089,-460.0,0.00021917,6]
[366380198,1750223442098,-434.0784236,0.00021917,6]
[366380199,1750223442108,-460.0,0.00021917,6]
[366380200,1750223442118,-460.0,0.00021917,6]
[366380201,1750223442128,-503.31,0.00021917,6]
[366380202,1750223442140,-434.65672422,0.00021917,6]
[366380203,1750223442149,-168.0,0.00021949,2]
[366380204,1750223442159,-549.22067678,0.00021958,2]
[366380205,1750223442168,-1592.01320081,0.00021969,6]
[366380206,1750223442178,-500.33125713,0.00021973,2]
[366380207,1750223442187,-501.07746307,0.00021973,2]
[366380208,1750223442196,-500.0,0.00021973,2]
[366380209,1750223442206,-602.03328458,0.00021973,2]
[366380210,1750223442215,-501.56913861,0.00021973,2]
[366380211,1750223442224,-496.28577438,0.00021973,2]
[366380212,1750223442234,-630.54773308,0.00021973,2]
[366380213,1750223442244,-500.0,0.00021973,2]
[366380214,1750223442254,-505.54558015,0.00021973,2]
[366380215,1750223442263,-500.97984341,0.00021973,2]
[366380216,1750223442273,-500.50120501,0.00021973,2]
[366380217,1750223442283,-500.0,0.00021973,2]
[366380218,1750223442292,-503.01241024,0.00021973,2]
[366380219,1750223442302,-503.38901965,0.00021973,2]
[366380220,1750223442311,-500.0,0.00021973,2]
[366380221,1750223442321,-504.08159758,0.00021973,2]
[366380222,1750223442331,-500.0,0.00021973,2]
[366380223,1750223442340,-505.81159817,0.00021973,2]
[366380224,1750223442350,-188.0,0.00022,3]
[366380226,1750223442360,-189.0,0.00022,2]
[366380227,1750223442369,-158.0,0.00022,2]
[366380229,1750223442380,-168.0,0.00022023,2]
[366380231,1750223442390,-500.0,0.00022026,6]
[366380233,1750223442399,-18602.99111709,0.00022027,2]
[366380234,1750223442409,-19721.76471963,0.00022027,2]
[366380236,1750223442418,-404.77762324,0.00022027,6]
[366380237,1750223442428,-430.0,0.00022027,6]
[366380239,1750223442437,-460.0,0.00022027,6]
[366380241,1750223442447,-460.0,0.00022027,6]
[366380242,1750223442456,-460.0,0.00022027,6]
[366380244,1750223442464,-460.0,0.00022027,6]
[366380245,1750223442474,-440.0,0.00022027,6]
[366380247,1750223442484,-460.0,0.00022027,6]
[366380249,1750223442494,-460.0,0.00022027,6]
[366380250,1750223442503,-435.99560946,0.00022027,6]
[366380252,1750223442514,-390.0,0.00022027,6]
[366380254,1750223442524,-430.0,0.00022027,6]
[366380256,1750223442534,-410.0,0.00022027,6]
[366380257,1750223442545,-460.0,0.00022027,6]
[366380259,1750223442555,-460.0,0.00022027,6]
[366380261,1750223442564,-460.0,0.00022027,6]
[366380262,1750223442573,-430.0,0.00022027,6]
[366380264,1750223442583,-418.82698425,0.00022027,6]
[366380265,1750223442592,-156.79959206,0.00022027,6]
[366380267,1750223442602,-460.0,0.00022027,6]
[366380268,1750223442612,-460.0,0.00022027,6]
[366380270,1750223442621,-460.0,0.00022027,6]
[366380272,1750223442631,-460.0,0.00022027,6]
[366380274,1750223442641,-460.0,0.00022027,6]
[366380275,1750223442651,-447.27879392,0.00022027,6]
[366380277,1750223442661,-470.45100791,0.00022027,6]
[366380278,1750223442670,-460.0,0.00022027,6]
[366380281,1750223442680,-460.0,0.00022027,6]
[366380284,1750223442689,-460.0,0.00022027,6]
[366380286,1750223442701,-460.0,0.00022027,6]
[366380289,1750223442712,-460.0,0.00022027,6]
[366380291,1750223442721,-460.0,0.00022027,2]
[366380294,1750223442730,-460.0,0.00022027,6]
[366380296,1750223442739,-460.0,0.00022027,6]
[366380299,1750223442749,-460.0,0.00022027,6]
[366380302,1750223442759,-538.23529506,0.00022027,6]
[366380304,1750223442768,-460.0,0.00022027,6]
[366380306,1750223442779,-430.0,0.00022027,6]
[366380307,1750223442789,-460.0,0.00022027,6]
[366380309,1750223442799,-460.0,0.00022027,6]
[366380311,1750223442809,-460.0,0.00022027,6]
[366380312,1750223442819,-460.0,0.00022027,6]
[366380314,1750223442829,-460.0,0.00022027,6]
[366380317,1750223442839,-460.0,0.00022027,6]
[366380319,1750223442848,-480.95018045,0.00022027,6]
[366380322,1750223442858,-460.0,0.00022027,6]
[366380325,1750223442867,-460.0,0.00022027,6]
[366380327,1750223442877,-460.0,0.00022027,6]
[366380329,1750223442886,-581.21984458,0.00022027,6]
[366380331,1750223442896,-358.87724568,0.00022027,6]
[366380333,1750223442905,-453.28997575,0.00022027,6]
[366380335,1750223442915,-416.22031333,0.00022027,6]
[366380337,1750223442924,-430.0,0.00022027,6]
[366380339,1750223442933,-460.0,0.00022027,6]
[366380341,1750223442943,-430.0,0.00022027,6]
[366380344,1750223442952,-460.0,0.00022027,6]
[366380347,1750223442961,-460.0,0.00022027,6]
[366380350,1750223442971,-410.0,0.00022027,6]
[366380352,1750223442988,-460.0,0.00022027,6]
[366380354,1750223442997,-460.0,0.00022027,6]
[366380356,1750223443007,-430.0,0.00022027,6]
[366380358,1750223443016,-431.33327905,0.00022027,6]
[366380360,1750223443025,-460.0,0.00022027,6]
[366380362,1750223443034,-423.65441181,0.00022027,6]
[366380364,1750223443045,-460.0,0.00022027,6]
[366380366,1750223443055,-460.0,0.00022027,6]
[366380368,1750223443064,-460.0,0.00022027,6]
[366380370,1750223443074,-460.0,0.00022027,6]
[366380372,1750223443083,-374.72434269,0.00022027,6]
[366380374,1750223443093,-400.0,0.00022027,6]
[366380376,1750223443103,-460.0,0.00022027,6]
[366380378,1750223443112,-409.89353046,0.00022027,6]
[366380380,1750223443121,-433.43897535,0.00022027,6]
[366380382,1750223443131,-460.0,0.00022027,6]
[366380384,1750223443140,-460.0,0.00022027,6]
[366380386,1750223443150,-460.0,0.00022027,6]
[366380388,1750223443159,-410.0,0.00022027,6]
[366380390,1750223443169,-460.0,0.00022027,6]
[366380392,1750223443179,-460.0,0.00022027,6]
[366380394,1750223443188,-385.85261774,0.00022027,6]
[366380396,1750223443198,-301.26732101,0.00022027,6]
[366380398,1750223443208,-460.0,0.00022027,6]
[366380400,1750223443218,-460.0,0.00022027,6]
[366380402,1750223443228,-391.79333317,0.00022027,6]
[366380405,1750223443238,-400.0,0.00022027,6]
[366380408,1750223443248,-460.0,0.00022027,6]
[366380411,1750223443257,-452.44018328,0.00022027,6]
[366380414,1750223443266,-460.0,0.00022027,6]
[366380417,1750223443276,-423.7239593,0.00022027,6]
[366380420,1750223443285,-460.0,0.00022027,6]
[366380423,1750223443295,-460.0,0.00022027,6]
[366380426,1750223443304,-435.45505803,0.00022027,6]
[366380428,1750223443314,-460.0,0.00022027,6]
[366380431,1750223443323,-460.0,0.00022027,6]
[366380435,1750223443333,-460.0,0.00022027,6]
[366380438,1750223443344,-336.075088,0.00022027,6]
[366380441,1750223443353,-460.0,0.00022027,6]
[366380443,1750223443363,-460.0,0.00022027,6]
[366380446,1750223443372,-460.0,0.00022027,6]
[366380448,1750223443382,-460.0,0.00022027,6]
[366380451,1750223443392,-460.0,0.00022027,6]
[366380455,1750223443401,-488.38019128,0.00022027,6]
[366380456,1750223443411,-460.0,0.00022027,6]
[366380458,1750223443420,-460.0,0.00022027,6]
[366380461,1750223443429,-460.0,0.00022027,6]
[366380462,1750223443438,-460.0,0.00022027,6]
[366380465,1750223443448,-460.0,0.00022027,6]
[366380467,1750223443458,-460.0,0.00022027,6]
[366380468,1750223443467,-460.0,0.00022027,6]
[366380471,1750223443477,-460.0,0.00022027,6]
[366380472,1750223443487,-460.0,0.00022027,6]
[366380474,1750223443496,-460.0,0.00022027,6]
[366380476,1750223443505,-460.0,0.00022027,6]
[366380479,1750223443515,-410.0,0.00022027,6]
[366380481,1750223443524,-460.0,0.00022027,6]
[366380482,1750223443534,-412.12120811,0.00022027,6]
[366380485,1750223443544,-467.96376211,0.00022027,6]
[366380486,1750223443553,-400.0,0.00022027,6]
[366380489,1750223443562,-460.0,0.00022027,6]
[366380491,1750223443572,-400.0,0.00022027,6]
[366380493,1750223443581,-527.74660872,0.00022027,6]
[366380495,1750223443592,-460.0,0.00022027,6]
[366380497,1750223443602,-410.0,0.00022027,6]
[366380508,1750223443611,-460.0,0.00022027,6]
[366380510,1750223443712,-460.0,0.00022027,6]
[366380512,1750223443722,-460.0,0.00022027,6]